fUST/lending_fUST_20260222
["ID","MTS","AMOUNT","RATE_DAILY","PERIOD"]
[406303508,1771704081386,-150.0,0.00013009,2]
[406303509,1771704081396,-57.27091464,0.00013074,2]
[406303549,1771704514611,310.74079039,8.5e-05,3]
[406303573,1771704632352,-288.64903621,0.00012309,2]
[406303577,1771704632408,-847.28674491,0.00012309,2]
[406303578,1771704632417,-1331.80623752,0.00012433,2]
[406303579,1771704632427,-150.0,0.00012623,2]
[406303580,1771704632436,-500.0,0.00013273,2]
[406303581,1771704632445,-500.0,0.00013273,2]
[406303582,1771704632455,-300.0,0.00013698,2]
[406303583,1771704632464,-303.0,0.00013698,2]
[406303584,1771704632474,-500.0,0.00013699,2]
[406303585,1771704632483,-500.0,0.00013699,2]
[406303586,1771704632493,-500.0,0.00013699,2]
[406303587,1771704632502,-247.58519133,0.00013699,2]
[406303588,1771704632512,-503.49806099,0.00013699,2]
[406303589,1771704632521,-500.0,0.00013699,2]
[406303590,1771704632530,-500.0,0.00013699,2]
[406303591,1771704632540,-500.0,0.00013699,2]
[406303592,1771704632549,-464.03852694,0.00013699,2]
[406303593,1771704632558,-159.15023111,0.00013699,2]
[406303594,1771704632568,-500.0,0.00013699,2]
[406303595,1771704632577,-500.0,0.00013699,2]
[406303596,1771704632587,-150.0,0.000137,2]
[406303597,1771704632596,-150.0,0.000142,2]
[406303598,1771704632605,-501.77018036,0.00014247,2]
[406303599,1771704632615,-317.93874338,0.00014247,2]
[406303600,1771704632626,-183.1209241,0.00014247,2]
[406303601,1771704632636,-183.70709914,0.00014247,2]
[406303620,1771704640879,-491.2405776,0.00014247,2]
[406303621,1771704640888,-294.35583662,0.00014247,2]
[406303622,1771704640898,-177.0,0.00014623,2]
[406303623,1771704640907,-200.0,0.000148,2]
[406303624,1771704640916,-300.0,0.00015011,2]
[406303625,1771704640925,-554.06284087,0.000156,2]
[406303626,1771704640936,-478.30915913,0.000156,2]
[406303627,1771704640945,-418.5376397,0.00016112,2]
[406303628,1771704640954,-216.0,0.00016623,2]
[406303629,1771704640964,-743.87469872,0.00024272,2]
[406303630,1771704640973,-595.37674145,0.00025919,2]
[406303631,1771704640991,-1201.41860945,0.00025919,2]
[406303634,1771704644005,-806.99127554,0.00025919,2]
[406303645,1771704646466,-314.68358834,0.00025919,2]
[406303677,1771705837739,-372.16272028,0.00013426,11]
[406303715,1771705844155,-319.69221949,0.00013426,11]
[406303716,1771705844164,-500.0,0.00013699,2]
[406303717,1771705844173,-619.46594996,0.00014175,2]
[406303773,1771705881283,-1373.86216883,0.00013027,11]
[406303803,1771707032240,-3626.13783117,0.00011889,2]
[406303804,1771707032251,-5000.0,0.00012009,2]
[406303805,1771707032262,-288.64903621,0.0001213,2]
[406303806,1771707032273,-1200.0,0.00012252,2]
[406303807,1771707032285,-300.0,0.00012754,2]
[406303808,1771707032300,-153.0,0.00014175,2]
[406303809,1771707032313,-153.0,0.00014175,2]
[406303810,1771707032324,-1969.19416575,0.00015,7]
[406303811,1771707032338,-28.95440896,0.00015,7]
[406303812,1771707032351,-984.12522725,0.00016104,2]
[406303836,1771707040552,-1032.81691835,0.00016104,2]
[406303837,1771707040563,-543.77591385,0.00018214,2]
[406303845,1771707044336,-806.99127554,0.00015943,2]
[406303855,1771707687474,2569.63,8e-05,2]
[406303856,1771707698646,-258.58827764,0.00014117,2]
[406303857,1771707727948,-2569.63,0.00014117,2]
[406303886,1771708231999,-5000.0,0.00012896,2]
[406303888,1771708232009,-902.01364559,0.00013026,2]
[406303890,1771708232020,-613.671,0.00013026,2]
[406303894,1771708232054,-530.57346494,0.00013026,2]
[406303896,1771708232065,-513.23543468,0.00013026,2]
[406304003,1771708240630,-270.60031307,0.00013026,2]
[406304044,1771708246055,-2169.90614172,0.00013026,2]
[406304045,1771708246064,-1200.0,0.00013157,2]
[406304046,1771708246074,-5000.0,0.00013158,2]
[406304047,1771708246083,-300.0,0.00013424,2]
[406304048,1771708246092,-300.0,0.00013424,2]
[406304049,1771708246102,-300.0,0.00013424,2]
[406304050,1771708246111,-300.0,0.00013424,2]
[406304051,1771708246120,-300.0,0.00014715,2]
[406304052,1771708246130,-300.0,0.00014959,2]
[406304053,1771708246139,-1376.7626307,0.0001496,2]
[406304054,1771708246149,-199.4532238,0.0001496,2]
[406304055,1771708246158,-2397.84827764,0.0001496,2]
[406304056,1771708246168,-345.419965,0.00014994,2]
[406304057,1771708246177,-170.604504,0.00014995,2]
[406304058,1771708246186,-1376.7626307,0.00016914,2]
[406304059,1771708246196,-345.419965,0.00016974,2]
[406304060,1771708246205,-153.0,0.00018214,2]
[406304061,1771708246215,-153.0,0.00018214,2]
[406304062,1771708246224,-153.0,0.00018214,2]
[406304063,1771708246233,-205.35586725,0.00018214,2]
[406304064,1771708246243,-153.0,0.00018214,2]
[406304065,1771708246252,-1376.7626307,0.00018868,2]
[406304066,1771708246261,-345.419965,0.00018954,2]
[406304067,1771708246270,-289.93676701,0.00020818,2]
[406304068,1771708246279,-206.65785599,0.00020818,2]
[406304069,1771708246288,-500.0,0.00020818,2]
[406304070,1771708246297,-500.0,0.00020818,2]
[406304071,1771708246307,-500.0,0.00020818,2]
[406304072,1771708246316,-500.0,0.00020818,2]
[406304073,1771708246326,-500.0,0.00020818,2]
[406304074,1771708246337,-500.0,0.00020818,2]
[406304075,1771708246346,-500.0,0.00020818,2]
[406304076,1771708246355,-500.0,0.00020818,2]
[406304077,1771708246364,-500.0,0.00020818,2]
[406304078,1771708246374,-432.25277552,0.00020818,2]
[406304079,1771708246383,-500.0,0.00020818,2]
[406304080,1771708246392,-409.92032733,0.00020818,2]
[406304081,1771708246402,-500.0,0.00020818,2]
[406304082,1771708246411,-500.0,0.00020818,2]
[406304083,1771708246420,-500.0,0.00020818,2]
[406304084,1771708246429,-500.0,0.00020818,2]
[406304085,1771708246439,-500.0,0.00020818,2]
[406304086,1771708246448,-500.0,0.00020818,2]
[406304087,1771708246458,-500.0,0.00020818,2]
[406304088,1771708246467,-500.0,0.00020818,2]
[406304089,1771708246476,-500.0,0.00020818,2]
[406304090,1771708246486,-500.0,0.00020818,2]
[406304091,1771708246495,-500.0,0.00020818,2]
[406304092,1771708246504,-500.0,0.00020818,2]
[406304093,1771708246513,-500.0,0.00020818,2]
[406304094,1771708246522,-500.0,0.00020818,2]
[406304095,1771708246531,-500.0,0.00020818,2]
[406304096,1771708246541,-500.0,0.00020818,2]
[406304097,1771708246550,-390.87924881,0.00020818,2]
[406304098,1771708246559,-500.0,0.00020818,2]
[406304099,1771708246568,-500.0,0.00020818,2]
[406304100,1771708246577,-500.0,0.00020818,2]
[406304101,1771708246586,-361.78995689,0.00020818,2]
[406304102,1771708246596,-500.0,0.00020818,2]
[406304103,1771708246608,-500.0,0.00020818,2]
[406304104,1771708246619,-500.0,0.00020818,2]
[406304105,1771708246630,-500.0,0.00020818,2]
[406304106,1771708246639,-500.0,0.00020818,2]
[406304107,1771708246649,-500.0,0.00020818,2]
[406304108,1771708246658,-500.0,0.00020818,2]
[406304109,1771708246667,-500.0,0.00020818,2]
[406304110,1771708246677,-500.0,0.00020818,2]
[406304111,1771708246686,-500.0,0.00020818,2]
[406304112,1771708246696,-500.0,0.00020818,2]
[406304113,1771708246705,-500.0,0.00020818,2]
[406304114,1771708246715,-500.0,0.00020818,2]
[406304115,1771708246724,-500.0,0.00020818,2]
[406304116,1771708246735,-500.0,0.00020818,2]
[406304117,1771708246744,-500.0,0.00020818,2]
[406304118,1771708246754,-500.0,0.00020818,2]
[406304119,1771708246764,-500.0,0.00020818,2]
[406304120,1771708246774,-500.0,0.00020818,2]
[406304121,1771708246784,-500.0,0.00020818,2]
[406304122,1771708246794,-500.0,0.00020818,2]
[406304123,1771708246804,-500.0,0.00020818,2]
[406304124,1771708246813,-500.0,0.00020818,2]
[406304125,1771708246823,-500.0,0.00020818,2]
[406304126,1771708246832,-500.0,0.00020818,2]
[406304127,1771708246842,-500.0,0.00020818,2]
[406304128,1771708246852,-500.0,0.00020818,2]
[406304129,1771708246862,-500.0,0.00020818,2]
[406304130,1771708246875,-500.0,0.00020818,2]
[406304131,1771708246885,-500.0,0.00020818,2]
[406304132,1771708246895,-500.0,0.00020818,2]
[406304133,1771708246906,-500.0,0.00020818,2]
[406304134,1771708246917,-500.0,0.00020818,2]
[406304135,1771708246926,-500.0,0.00020818,2]
[406304136,1771708246935,-500.0,0.00020818,2]
[406304137,1771708246944,-500.0,0.00020818,2]
[406304138,1771708246954,-500.0,0.00020818,2]
[406304139,1771708246963,-500.0,0.00020818,2]
[406304140,1771708246972,-500.0,0.00020818,2]
[406304141,1771708246982,-500.0,0.00020818,2]
[406304142,1771708246991,-500.0,0.00020818,2]
[406304143,1771708247001,-500.0,0.00020818,2]
[406304144,1771708247010,-500.0,0.00020818,2]
[406304145,1771708247020,-500.0,0.00020818,2]
[406304146,1771708247029,-500.0,0.00020818,2]
[406304147,1771708247039,-500.0,0.00020818,2]
[406304148,1771708247048,-500.0,0.00020818,2]
[406304149,1771708247058,-500.0,0.00020818,2]
[406304150,1771708247067,-500.0,0.00020818,2]
[406304151,1771708247076,-500.0,0.00020818,2]
[406304152,1771708247086,-500.0,0.00020818,2]
[406304153,1771708247096,-500.0,0.00020818,2]
[406304154,1771708247106,-500.0,0.00020818,2]
[406304155,1771708247115,-500.0,0.00020818,2]
[406304156,1771708247125,-500.0,0.00020818,2]
[406304157,1771708247134,-500.0,0.00020818,2]
[406304158,1771708247145,-500.0,0.00020818,2]
[406304159,1771708247154,-500.0,0.00020818,2]
[406304160,1771708247164,-222.40499243,0.00020818,2]
[406304193,1771709432235,-5000.0,0.00016488,2]
[406304195,1771709432244,-3072.65470572,0.00016655,2]
[406304197,1771709432256,-1188.60574073,0.00016655,2]
[406304208,1771709438324,-859.74102912,0.00016488,2]
[406304209,1771709438334,-738.73955355,0.00016655,2]
[406304210,1771709438343,-5000.0,0.00016823,2]
[406304211,1771709438355,-427.1791306,0.00016892,2]
[406304212,1771709438364,-841.57075825,0.00016992,2]
[406304213,1771709438384,-358.42924175,0.00016992,2]
[406304214,1771709438393,-300.0,0.00017078,2]
[406304215,1771709438404,-300.0,0.00017078,2]
[406304216,1771709438413,-300.0,0.00017078,2]
[406304217,1771709438424,-300.0,0.00017078,2]
[406304218,1771709438436,-300.0,0.00017078,2]
[406304219,1771709438445,-150.0,0.00017079,2]
[406304220,1771709438454,-2047.97058272,0.000173,2]
[406304221,1771709438463,-154.518106,0.00017338,2]
[406304222,1771709438474,-300.0,0.00017765,2]
[406304223,1771709438483,-202.95573691,0.00017765,2]
[406304224,1771709438492,-500.0,0.00017765,2]
[406304225,1771709438504,-500.0,0.00017765,2]
[406304227,1771709438513,-500.0,0.00017765,2]
[406304229,1771709438522,-500.0,0.00017765,2]
[406304231,1771709438532,-500.0,0.00017765,2]
[406304233,1771709438541,-500.0,0.00017765,2]
[406304234,1771709438550,-500.0,0.00017765,2]
[406304235,1771709438559,-500.0,0.00017765,2]
[406304236,1771709438568,-500.0,0.00017765,2]
[406304237,1771709438578,-500.0,0.00017765,2]
[406304238,1771709438590,-500.0,0.00017765,2]
[406304239,1771709438599,-500.0,0.00017765,2]
[406304240,1771709438608,-500.0,0.00017765,2]
[406304241,1771709438617,-500.0,0.00017765,2]
[406304242,1771709438627,-436.06245733,0.00017765,2]
[406304243,1771709438636,-500.0,0.00017765,2]
[406304244,1771709438646,-154.61219678,0.00017765,2]
[406304245,1771709438655,-501.09266261,0.00017765,2]
[406304246,1771709438664,-500.0,0.00017765,2]
[406304247,1771709438673,-500.0,0.00017765,2]
[406304248,1771709438683,-500.0,0.00017765,2]
[406304249,1771709438692,-500.0,0.00017765,2]
[406304250,1771709438701,-500.0,0.00017765,2]
[406304251,1771709438710,-500.0,0.00017765,2]
[406304252,1771709438720,-500.0,0.00017765,2]
[406304253,1771709438729,-500.0,0.00017765,2]
[406304254,1771709438739,-500.0,0.00017765,2]
[406304255,1771709438748,-500.0,0.00017765,2]
[406304256,1771709438757,-500.0,0.00017765,2]
[406304257,1771709438767,-500.0,0.00017765,2]
[406304258,1771709438775,-500.0,0.00017765,2]
[406304259,1771709438785,-346.68719161,0.00017765,2]
[406304260,1771709438794,-500.0,0.00017765,2]
[406304261,1771709438803,-500.0,0.00017765,2]
[406304262,1771709438812,-500.0,0.00017765,2]
[406304263,1771709438821,-500.0,0.00017765,2]
[406304264,1771709438831,-500.0,0.00017765,2]
[406304265,1771709438840,-500.0,0.00017765,2]
[406304266,1771709438849,-500.0,0.00017765,2]
[406304267,1771709438859,-500.0,0.00017765,2]
[406304268,1771709438868,-500.0,0.00017765,2]
[406304269,1771709438877,-500.0,0.00017765,2]
[406304270,1771709438887,-368.11745015,0.00017765,2]
[406304271,1771709438897,-500.0,0.00017765,2]
[406304272,1771709438906,-500.0,0.00017765,2]
[406304273,1771709438915,-500.0,0.00017765,2]
[406304274,1771709438925,-500.0,0.00017765,2]
[406304275,1771709438934,-593.88231086,0.00017765,2]
[406304276,1771709438943,-500.0,0.00017765,2]
[406304277,1771709438953,-500.0,0.00017765,2]
[406304278,1771709438962,-500.0,0.00017765,2]
[406304279,1771709438972,-500.0,0.00017765,2]
[406304280,1771709438981,-500.0,0.00017765,2]
[406304281,1771709438990,-500.0,0.00017765,2]
[406304282,1771709438999,-500.0,0.00017765,2]
[406304283,1771709439008,-500.0,0.00017765,2]
[406304284,1771709439017,-500.0,0.00017765,2]
[406304285,1771709439027,-500.0,0.00017765,2]
[406304286,1771709439036,-500.0,0.00017765,2]
[406304287,1771709439045,-500.0,0.00017765,2]
[406304288,1771709439055,-500.0,0.00017765,2]
[406304289,1771709439064,-500.0,0.00017765,2]
[406304290,1771709439073,-500.0,0.00017765,2]
[406304291,1771709439082,-500.0,0.00017765,2]
[406304292,1771709439092,-500.0,0.00017765,2]
[406304293,1771709439101,-500.0,0.00017765,2]
[406304294,1771709439111,-500.0,0.00017765,2]
[406304295,1771709439120,-500.0,0.00017765,2]
[406304296,1771709439129,-500.0,0.00017765,2]
[406304297,1771709439139,-500.0,0.00017765,2]
[406304298,1771709439148,-500.0,0.00017765,2]
[406304299,1771709439160,-500.0,0.00017765,2]
[406304300,1771709439169,-500.0,0.00017765,2]
[406304301,1771709439179,-29978.25087488,0.00017767,2]
[406304302,1771709439191,-2356.84039351,0.00017767,2]
[406304303,1771709439205,-6352.11166021,0.00017767,2]
[406304309,1771709440732,-1926.73457872,0.00017767,2]
[406304316,1771709443555,-421.537,0.00017589,2]
[406304317,1771709443720,-806.99127554,0.00017589,2]
[406304318,1771709443731,-859.15589302,0.00017589,2]
[406304327,1771709446235,-2912.31583144,0.00017589,2]
[406304328,1771709446244,-9386.06249268,0.00017767,2]
[406304329,1771709446254,-300.0,0.00018602,2]
[406304330,1771709446263,-151.0,0.00019178,2]
[406304331,1771709446272,-1218.65,0.00020808,10]
[406304332,1771709446282,-172.7099825,0.00020818,2]
[406304333,1771709446292,-500.0,0.00020818,2]
[406304334,1771709446303,-500.0,0.00020818,2]
[406304335,1771709446396,-500.0,0.00020818,2]
[406304336,1771709446406,-500.0,0.00020818,2]
[406304337,1771709446415,-283.17580175,0.00020818,2]
[406304338,1771709446426,-1376.7626308,0.00020818,2]
[406304339,1771709446438,-200.0,0.00020822,5]
[406304340,1771709446448,-259.465519,0.00021186,2]
[406304341,1771709446457,-510.85,0.00021918,2]
[406304342,1771709446466,-151.0,0.00021987,2]
[406304343,1771709446477,-151.0,0.00021987,2]
[406304344,1771709446486,-151.0,0.00021987,2]
[406304345,1771709446495,-151.0,0.00021987,2]
[406304346,1771709446504,-151.0,0.00021987,2]
[406304347,1771709446514,-151.0,0.00021987,2]
[406304348,1771709446523,-151.0,0.00021987,2]
[406304349,1771709446532,-158.63,0.00022,7]
[406304350,1771709446541,-41683.66962954,0.00022,2]
[406304351,1771709519817,-500.0,0.00017765,2]
[406304352,1771709519839,-500.0,0.00017765,2]
[406304353,1771709519989,-108.43649584,0.00017765,2]
[406304357,1771710158124,4100.0,0.00014,30]
[406304371,1771710632246,-3435.08345444,0.00014541,2]
[406304378,1771710632305,-1564.91654556,0.00014541,2]
[406304380,1771710632316,-2376.96792224,0.00014688,2]
[406304382,1771710632328,-597.0,0.00014688,2]
[406304417,1771710638475,-1583.86677274,0.00014688,2]
[406304418,1771710638486,-442.16530502,0.00014688,2]
[406304419,1771710638496,-150.0,0.00014911,2]
[406304420,1771710638505,-1200.0,0.00014984,2]
[406304421,1771710638515,-300.0,0.00014985,2]
[406304422,1771710638524,-300.0,0.00014985,2]
[406304423,1771710638533,-300.0,0.00014985,2]
[406304424,1771710638542,-300.0,0.00014985,2]
[406304425,1771710638551,-300.0,0.00014999,2]
[406304426,1771710638560,-3153.92,0.00015,3]
[406304427,1771710638569,-300.0,0.00015289,2]
[406304428,1771710638580,-300.0,0.000164,2]
[406304429,1771710638589,-500.0,0.00016529,2]
[406304430,1771710638598,-500.0,0.00016529,2]
[406304431,1771710638608,-500.0,0.00016529,2]
[406304432,1771710638617,-500.0,0.00016529,2]
[406304433,1771710638626,-500.0,0.00016529,2]
[406304434,1771710638635,-500.0,0.00016529,2]
[406304435,1771710638646,-500.0,0.00016529,2]
[406304436,1771710638655,-500.0,0.00016529,2]
[406304437,1771710638664,-500.0,0.00016529,2]
[406304438,1771710638674,-504.32902888,0.00016529,2]
[406304439,1771710638683,-500.0,0.00016529,2]
[406304440,1771710638692,-500.0,0.00016529,2]
[406304441,1771710638701,-218.5854168,0.00016699,2]
[406304442,1771710638710,-150.0,0.00016911,2]
[406304443,1771710638719,-329.82,0.000176,2]
[406304444,1771710638728,-200.0,0.00017753,3]
[406304445,1771710638738,-500.0,0.00018089,2]
[406304446,1771710638747,-743.42206437,0.00018485,2]
[406304500,1771710640880,-335.35836063,0.00018485,2]
[406304502,1771710640890,-843.16943644,0.00019263,2]
[406304673,1771710643590,-1340.42237045,0.00019071,2]
[406304674,1771710643601,-570.0,0.00019071,2]
[406304682,1771710646403,-1000.0,0.00019071,2]
[406304683,1771710646419,-2089.57762955,0.00019071,2]
[406304684,1771710646430,-235.61098856,0.00019263,2]
[406304685,1771710646440,-257.8639737,0.00019275,2]
[406304686,1771710646449,-172.7099825,0.00019531,2]
[406304687,1771710646459,-200.0,0.00019647,4]
[406304688,1771710646469,-1078.780425,0.00020042,2]
[406304689,1771710646479,-164.519411,0.0002046,2]
[406304690,1771710646488,-1078.780425,0.0002082,2]
[406304691,1771710646498,-770.67921595,0.00020943,2]
[406304700,1771711338458,-178.7341795,0.0001881,2]
[406304701,1771711338512,-3194.51349476,0.0001929,2]
[406304702,1771711367733,-178.7341795,0.0001929,2]
[406304729,1771711831573,-2813.44562919,0.00017982,2]
[406304732,1771711831586,-785.13225325,0.00017982,2]
[406304737,1771711831628,-1160.72508389,0.00017982,2]
[406304744,1771711837584,-240.69703367,0.00017982,2]
[406304745,1771711837597,-5000.0,0.00018164,2]
[406304746,1771711837607,-1771.8296007,0.00018347,2]
[406304747,1771711837617,-150.0,0.00018439,2]
[406304748,1771711837627,-1200.0,0.00018583,2]
[406304749,1771711837636,-2335.2992539,0.00018584,2]
[406304750,1771711837646,-300.0,0.00018715,2]
[406304751,1771711837656,-300.0,0.00018716,2]
[406304752,1771711837666,-300.0,0.00018716,2]
[406304753,1771711837675,-300.0,0.00018716,2]
[406304754,1771711837685,-200.0,0.00019288,4]
[406304756,1771711837694,-300.0,0.00019681,2]
[406304757,1771711837703,-259.46552,0.00019682,2]
[406304758,1771711837713,-3230.6445732,0.00019682,2]
[406304784,1771711844696,-397.27149647,0.00019485,2]
[406304785,1771711844759,-3476.33145951,0.00019485,2]
[406304786,1771711844866,-806.99127554,0.00019485,2]
[406304787,1771711844881,-319.40576848,0.00019485,2]
[406304788,1771711844890,-729.54423152,0.00019682,2]
[406304823,1771711845655,-1200.0,0.00019682,2]
[406304825,1771711845667,-44839.81119528,0.00019682,2]
[406304828,1771711845677,-1669.2472683,0.00019743,2]
[406304830,1771711845687,-500.0,0.00019913,2]
[406304832,1771711845697,-500.0,0.00019913,2]
[406304834,1771711845706,-500.0,0.00019913,2]
[406304835,1771711845715,-316.29857685,0.00019913,2]
[406304837,1771711845724,-500.0,0.00019913,2]
[406304839,1771711845733,-500.0,0.00019913,2]
[406304841,1771711845744,-500.0,0.00019913,2]
[406304843,1771711845754,-500.0,0.00019913,2]
[406304846,1771711845763,-500.0,0.00019913,2]
[406304847,1771711845772,-500.0,0.00019913,2]
[406304849,1771711845782,-500.0,0.00019913,2]
[406304851,1771711845791,-500.0,0.00019913,2]
[406304853,1771711845801,-500.0,0.00019913,2]
[406304855,1771711845810,-500.0,0.00019913,2]
[406304857,1771711845819,-500.0,0.00019913,2]
[406304859,1771711845828,-320.8105063,0.00019913,2]
[406304861,1771711845837,-500.0,0.00019913,2]
[406304863,1771711845846,-500.0,0.00019913,2]
[406304865,1771711845855,-500.0,0.00019913,2]
[406304867,1771711845864,-500.0,0.00019913,2]
[406304868,1771711845874,-500.0,0.00019913,2]
[406304872,1771711845883,-500.0,0.00019913,2]
[406304874,1771711845892,-500.0,0.00019913,2]
[406304876,1771711845901,-500.0,0.00019913,2]
[406304877,1771711845911,-500.0,0.00019913,2]
[406304879,1771711845921,-500.0,0.00019913,2]
[406304880,1771711845930,-500.0,0.00019913,2]
[406304881,1771711845941,-500.0,0.00019913,2]
[406304882,1771711845951,-500.0,0.00019913,2]
[406304883,1771711845960,-500.0,0.00019913,2]
[406304884,1771711845971,-500.0,0.00019913,2]
[406304885,1771711845980,-500.0,0.00019913,2]
[406304886,1771711845989,-500.0,0.00019913,2]
[406304887,1771711845999,-500.0,0.00019913,2]
[406304888,1771711846008,-500.0,0.00019913,2]
[406304889,1771711846018,-500.0,0.00019913,2]
[406304890,1771711846027,-151.0,0.00019915,2]
[406304891,1771711846037,-151.0,0.00019917,2]
[406304892,1771711846047,-1158.0,0.00020363,2]
[406304893,1771711846058,-300.0,0.00020405,2]
[406304894,1771711846067,-300.0,0.00020406,2]
[406304895,1771711846076,-397.0,0.00020406,2]
[406304896,1771711846085,-300.0,0.00020406,2]
[406304897,1771711846094,-318.0,0.00020665,2]
[406304898,1771711846103,-151.0,0.00020941,2]
[406304899,1771711846112,-9229.32078405,0.00020943,2]
[406304900,1771711846126,-200.0,0.00021521,6]
[406304901,1771711846139,-1078.780425,0.00021598,2]
[406304902,1771711846153,-194.89,0.0002189,3]
[406304903,1771711846165,-151.0,0.00021918,2]
[406304904,1771711846176,-454.36,0.0002199,3]
[406304905,1771711846189,-1705.12,0.0002199,10]
[406304906,1771711846202,-151.0,0.0002199,2]
[406304907,1771711846216,-151.0,0.00022,2]
[406304908,1771711846230,-151.0,0.00022,2]
[406304909,1771711846244,-151.0,0.00022,2]
[406304910,1771711846258,-26971.51265184,0.00022,2]
[406304911,1771711846296,-983.43426962,0.00022,2]
[406304912,1771711846332,-16534.92346027,0.00022,2]
[406304915,1771712805929,300.0,0.00015425,120]
[406304916,1771712807795,190.28,0.00015425,120]
[406304921,1771713005491,169.9199,0.00015414,120]
[406304953,1771713031637,-2001.85142529,0.00015,7]
[406304955,1771713031647,-169.9199,0.0001565,120]
[406304957,1771713031656,-169.9199,0.00015729,120]
[406304959,1771713031666,-200.0,0.00017331,3]
[406304961,1771713031675,-5000.0,0.00017619,2]
[406304963,1771713031684,-518.3616555,0.00017797,2]
[406305212,1771713040242,-296.78191451,0.00017619,2]
[406305214,1771713040253,-1177.10208267,0.00017619,2]
[406305505,1771713043068,-3526.11600282,0.00017619,2]
[406305507,1771713043078,-1224.81211559,0.00017797,2]
[406305510,1771713043089,-1274.16188159,0.00017797,2]
[406305757,1771713045720,-1982.66434732,0.00017797,2]
[406305758,1771713045730,-1200.0,0.00017797,2]
[406305760,1771713045739,-300.0,0.00018545,2]
[406305762,1771713045748,-300.0,0.00018545,2]
[406305763,1771713045757,-300.0,0.00018545,2]
[406305765,1771713045767,-300.0,0.00018545,2]
[406305767,1771713045776,-705.3106652,0.00018547,2]
[406305769,1771713045785,-200.0,0.00019082,4]
[406305771,1771713045794,-504.51920579,0.00019111,2]
[406305773,1771713045802,-159.56249526,0.00019111,2]
[406305775,1771713045811,-500.0,0.00019111,2]
[406305776,1771713045820,-500.0,0.00019111,2]
[406305778,1771713045829,-500.0,0.00019111,2]
[406305779,1771713045838,-500.0,0.00019111,2]
[406305780,1771713045847,-500.0,0.00019111,2]
[406305781,1771713045855,-500.0,0.00019111,2]
[406305782,1771713045864,-500.0,0.00019111,2]
[406305783,1771713045873,-500.0,0.00019111,2]
[406305784,1771713045882,-500.0,0.00019111,2]
[406305785,1771713045891,-167.27607865,0.00019111,2]
[406305786,1771713045902,-332.72392135,0.00019111,2]
[406305787,1771713045911,-500.0,0.00019111,2]
[406305788,1771713045920,-167.14766988,0.00019111,2]
[406305789,1771713045929,-186.98326421,0.00019111,2]
[406305790,1771713045939,-500.0,0.00019111,2]
[406305791,1771713045948,-500.0,0.00019111,2]
[406305792,1771713046037,-500.0,0.00019111,2]
[406305793,1771713046054,-500.0,0.00019111,2]
[406305794,1771713046063,-500.0,0.00019111,2]
[406305795,1771713046073,-500.0,0.00019111,2]
[406305796,1771713046082,-500.0,0.00019111,2]
[406305797,1771713046091,-500.0,0.00019111,2]
[406305798,1771713046100,-500.0,0.00019111,2]
[406305799,1771713046109,-500.0,0.00019111,2]
[406305800,1771713046119,-500.0,0.00019111,2]
[406305801,1771713046127,-500.0,0.00019111,2]
[406305802,1771713046137,-500.0,0.00019111,2]